bitfinex/quotes_ETHUSD_20241108
["timestamp","ask_amount","ask_price","bid_price","bid_amount"]
[1731063679810,0.2613,2926.5,2925.6,0.55]
[1731063680438,0.2613,2926.8,2925.8,0.55]
[1731063680918,1.67655989,2927.2,2925.9,0.7902]
[1731063681260,0.2613,2927.2,2926.1,0.55]
[1731063681559,0.2613,2927.2,2926.0,0.55]
[1731063682114,0.2613,2927.2,2926.0,0.61834229]
[1731063682754,0.2613,2927.2,2926.0,0.61834041]
[1731063682957,0.2613,2927.5,2926.3,0.7902]
[1731063683128,0.2613,2927.5,2926.4,0.55]
[1731063684649,0.2613,2927.5,2926.0,0.55]
[1731063684876,0.2613,2927.4,2926.0,0.55]
[1731063686451,0.2613,2927.4,2926.0,0.61833764]
[1731063687727,0.2613,2927.4,2926.0,0.55]
[1731063688127,0.2613,2927.4,2926.1,0.06833765]
[1731063688326,0.2613,2927.4,2926.2,0.55]
[1731063688678,0.2613,2927.4,2926.3,0.06833765]
[1731063688965,0.2613,2927.4,2926.0,0.55]
[1731063688966,0.2613,2927.4,2926.2,0.55]
[1731063689121,0.2613,2927.4,2926.3,0.43016879]
[1731063689449,0.2613,2927.4,2926.6,0.55]
[1731063689616,0.2613,2927.4,2926.7,0.06832926]
[1731063690821,0.2613,2927.4,2926.6,0.55]
[1731063692155,0.2613,2927.4,2926.3,3.63309042]
[1731063692156,0.2613,2927.4,2926.3,0.36183377]
[1731063692316,0.2613,2927.4,2925.8,0.38261006]
[1731063692317,0.2613,2927.4,2925.9,0.833]
[1731063693420,0.2613,2927.4,2926.0,0.55]
[1731063695671,0.2613,2927.4,2925.7,3.70536665]
[1731063695672,0.2613,2926.8,2925.7,0.43411]
[1731063695952,0.2613,2926.8,2925.5,0.8107]
[1731063696750,3.27125665,2926.7,2924.9,0.7756]
[1731063696965,0.2613,2926.6,2924.9,0.7756]
[1731063697554,0.2613,2926.6,2924.9,3.7756]
[1731063698062,0.2613,2926.2,2924.6,1.1471785]
[1731063698273,0.2613,2926.0,2924.7,0.44184352]
[1731063699892,0.2613,2926.0,2924.8,0.55]
[1731063700666,3.27125665,2925.8,2924.2,0.7909]
[1731063700973,0.2613,2925.6,2924.2,0.35649543]
[1731063701132,0.2613,2925.6,2924.1,0.38896462]
[1731063701556,0.2613,2925.6,2924.2,0.06838865]
[1731063701977,0.2613,2925.6,2924.1,0.38896462]
[1731063702131,3.0,2925.4,2924.1,0.38896462]
[1731063702337,0.2613,2925.3,2923.9,0.7818]
[1731063702753,0.2613,2925.3,2923.6,3.27125665]
[1731063702966,0.2613,2925.3,2923.7,0.06839342]
[1731063703257,3.0,2925.4,2923.8,0.33396501]
[1731063703258,0.2613,2925.1,2923.8,0.33396501]
[1731063703778,0.2613,2925.1,2923.4,0.35655506]
[1731063703779,0.2613,2924.5,2923.4,0.35655506]
[1731063703979,0.2613,2924.4,2922.6,4.05305665]
[1731063704146,0.2613,2924.4,2922.9,3.27125665]
[1731063705582,0.2613,2924.4,2922.8,0.55]
[1731063705944,0.2613,2924.4,2923.0,0.55]
[1731063706153,0.2613,2924.4,2923.1,0.06841183]
[1731063706445,0.2613,2924.4,2922.7,3.35665631]
[1731063706446,0.2613,2924.4,2923.2,0.55]
[1731063706839,0.2613,2924.4,2923.0,0.55]
[1731063707042,0.2613,2924.4,2923.2,0.55]
[1731063707464,0.2613,2924.4,2923.0,0.55]
[1731063708368,0.2613,2924.4,2923.2,0.55]
[1731063708957,0.2613,2924.4,2923.0,0.55]
[1731063709979,0.2613,2924.2,2923.0,0.55]
[1731063710772,0.2613,2924.2,2922.9,0.39066563]
[1731063710973,0.2613,2924.2,2922.2,4.42201502]
[1731063710974,0.2613,2924.2,2922.3,3.8298]
[1731063711877,0.2613,2923.9,2922.0,0.7935]
[1731063712086,0.2713,2923.9,2922.0,0.7935]
[1731063713341,0.2713,2923.9,2922.1,0.55]
[1731063713541,0.2613,2923.7,2921.8,3.0]
[1731063713763,0.2713,2923.7,2921.8,3.0]
[1731063713989,3.0,2923.6,2921.8,3.06843937]
[1731063714283,0.2613,2923.0,2921.7,0.35676789]
[1731063714485,0.2613,2922.9,2921.6,0.1361289]
[1731063715277,0.2713,2922.9,2921.6,0.1361289]
[1731063715681,0.2613,2922.6,2921.6,0.1361289]
[1731063716050,0.2613,2922.4,2921.6,0.1361289]
[1731063718347,0.2613,2922.4,2921.7,0.55]
[1731063720947,0.2613,2922.4,2921.6,0.1361289]
[1731063723755,0.2613,2922.2,2921.6,0.1361289]
[1731063724161,0.2613,2922.2,2921.7,0.55]
[1731063725781,3.9010705,2923.0,2921.7,0.61845064]
[1731063725961,0.2613,2922.9,2921.8,3.8069]
[1731063726175,0.2613,2924.1,2922.2,0.55]
[1731063726357,0.2613,2924.1,2921.8,3.8069]
[1731063726358,0.01,2923.7,2922.4,0.55]
[1731063726556,0.2613,2923.6,2922.4,0.55]
[1731063727003,0.2613,2923.6,2922.4,1.3814]
[1731063727357,0.2613,2924.1,2922.8,3.55]
[1731063727669,0.2613,2924.1,2923.0,0.55]
[1731063728472,0.2613,2924.1,2923.2,0.55]
[1731063728807,0.2613,2924.1,2923.0,0.55]
[1731063729158,0.2713,2924.0,2922.0,3.0]
[1731063729583,0.2713,2924.0,2921.9,4.82820496]
[1731063729800,0.2613,2923.6,2922.0,0.4828205]
[1731063730101,0.2613,2923.6,2921.9,0.7888]
[1731063730314,0.2613,2923.6,2921.6,0.9249289]
[1731063730665,0.2713,2923.3,2921.6,0.1361289]
[1731063730860,0.2613,2923.0,2921.6,0.1361289]
[1731063732404,0.2613,2923.0,2921.7,0.55]
[1731063733485,0.2613,2923.0,2921.9,0.55]
[1731063733730,0.2613,2923.0,2921.9,4.58940496]
[1731063733915,0.2613,2923.0,2922.1,0.55]
[1731063735092,0.2613,2923.0,2922.1,0.6184387]
[1731063735439,0.2613,2923.0,2921.6,3.1361289]
[1731063736995,0.2613,2923.0,2921.7,0.55]
[1731063743327,0.2613,2923.0,2921.6,0.1361289]
[1731063744321,0.01,2923.1,2921.6,0.1361289]
[1731063744322,0.2613,2922.3,2921.6,0.1361289]
[1731063744533,0.2613,2922.2,2921.6,0.1361289]
[1731063747597,0.2713,2922.2,2921.6,0.1361289]
[1731063747754,0.2613,2921.9,2921.6,0.1361289]
[1731063750695,0.2613,2921.7,2921.6,0.1361289]
[1731063753169,0.2613,2922.3,2921.6,0.1361289]
[1731063753585,0.2613,2922.3,2921.7,0.55]
[1731063754670,0.2613,2923.2,2921.7,0.55]
[1731063755679,0.2613,2923.2,2921.8,0.06844459]
[1731063755880,0.2613,2923.2,2921.9,0.55]
[1731063756394,0.2613,2923.2,2921.7,0.55]
[1731063757003,0.2613,2923.1,2921.7,0.55]
[1731063757179,0.2613,2922.9,2921.7,0.55]
[1731063758186,0.2613,2922.8,2921.7,0.55]
[1731063758672,3.0,2922.8,2921.6,0.1361289]
[1731063758868,0.2613,2922.7,2921.6,0.1361289]
[1731063759269,0.2613,2922.7,2921.6,0.20457827]
[1731063759672,0.2613,2922.7,2921.7,0.39829783]
[1731063760097,0.2613,2922.7,2921.8,0.55]
[1731063760314,0.2613,2922.7,2922.0,0.55]
[1731063761015,0.2613,2922.7,2921.6,0.9365289]
[1731063761308,0.2613,2922.7,2921.7,0.46210549]
[1731063761508,0.2613,2922.7,2921.7,0.0684526]
[1731063761720,0.2613,2923.5,2921.8,0.8184]
[1731063761880,0.2613,2923.5,2921.9,0.06843832]
[1731063762297,0.2613,2923.5,2922.0,0.55]
[1731063762621,0.2613,2923.5,2921.9,0.55]
[1731063762906,0.2613,2923.3,2921.9,0.55]
[1731063763482,0.2613,2923.3,2922.1,0.55]
[1731063763898,0.2613,2923.3,2921.9,0.55]
[1731063765390,3.0,2923.2,2921.9,0.55]
[1731063765605,0.2613,2923.1,2921.9,0.55]
[1731063765817,0.58743,2923.0,2921.9,0.55]
[1731063765973,0.2613,2922.9,2921.9,0.55]
[1731063766183,0.2613,2922.9,2921.8,0.8184]
[1731063766184,0.2613,2922.9,2921.7,0.55]
[1731063766511,0.2613,2922.9,2921.6,0.1361289]
[1731063767070,1.73415152,2923.0,2921.6,0.1361289]
[1731063767071,0.2613,2922.7,2921.6,0.1361289]
[1731063767902,0.2613,2922.7,2921.7,0.55]
[1731063769630,0.2613,2922.7,2921.6,0.1361289]
[1731063770914,0.2613,2922.7,2921.7,0.55]
[1731063775433,0.2597043,2922.7,2921.7,0.55]
[1731063776031,0.2597043,2922.7,2922.1,0.55]
[1731063776239,1.40802152,2923.4,2922.1,0.55]
[1731063776401,1.40802152,2923.5,2922.1,0.55]
[1731063776600,0.05133312,2923.6,2922.1,3.83556664]
[1731063777210,0.05133312,2923.6,2922.3,0.55]
[1731063777541,0.05133312,2923.6,2922.6,0.55]
[1731063778430,0.2597,2923.5,2922.6,0.55]
[1731063779842,0.2597,2923.5,2922.5,0.778]
[1731063780003,0.33110331,2923.4,2922.5,0.778]
[1731063780203,0.33110331,2923.4,2921.9,1.3805]
[1731063780448,0.2597,2923.5,2922.1,0.55]
[1731063780601,0.2597,2923.5,2922.3,0.55]
[1731063781543,0.2597,2923.5,2922.4,0.06842946]
[1731063781837,0.2597,2923.5,2922.3,0.55]
[1731063781838,0.2597,2923.5,2922.6,0.7629]
[1731063782142,0.2597,2923.5,2922.7,0.55]
[1731063782939,0.05133312,2923.6,2922.7,0.61842711]
[1731063783144,0.05133312,2923.6,2922.8,0.7691]
[1731063783306,0.05133312,2923.6,2922.9,0.61841751]
[1731063784346,0.05133312,2923.6,2922.9,0.55]
[1731063785115,0.05133312,2923.6,2922.9,0.61841746]
[1731063785527,0.05133312,2923.6,2922.9,0.55]
[1731063786915,0.05133312,2923.6,2922.9,0.61842117]
[1731063787251,0.05133312,2923.6,2923.1,0.55]
[1731063787416,0.05133312,2923.6,2923.2,0.7784]
[1731063787726,0.05133312,2923.6,2923.5,0.55]
[1731063788055,0.05133312,2923.6,2923.5,0.7446808]
[1731063790520,0.05133312,2923.6,2922.7,0.7572]
[1731063792761,0.05133312,2923.6,2922.8,0.06842003]
[1731063793060,0.05133312,2923.6,2922.7,0.7572]
[1731063793361,0.05133312,2923.6,2922.8,0.55]
[1731063794264,0.05133312,2923.6,2922.8,0.61841717]
[1731063794844,0.05133312,2923.6,2923.0,0.55]
[1731063797665,0.05133312,2923.6,2922.9,0.7783]
[1731063797986,0.2597,2923.5,2922.7,0.7727]
[1731063798145,0.2597,2923.5,2922.4,0.7727]
[1731063798661,0.2597,2923.5,2922.5,0.06842659]
[1731063798848,0.2597,2923.5,2922.4,0.7727]
[1731063799242,0.2597,2923.5,2922.6,3.7727]
[1731063799444,0.05133312,2923.6,2922.7,0.85661772]
[1731063799656,0.05133312,2923.6,2922.8,0.55]
[1731063801470,0.05133312,2923.6,2923.0,0.55]
[1731063801637,0.05133312,2923.6,2922.8,0.55]
[1731063803170,0.05133312,2923.6,2922.7,0.78819933]
[1731063803371,0.05133312,2923.6,2922.6,0.841122]
[1731063803877,0.05133312,2923.6,2922.6,3.7727]
[1731063804346,0.05133312,2923.6,2922.7,0.55]
[1731063804745,0.2597,2923.5,2922.3,0.8067]
[1731063804931,0.2597,2923.5,2922.4,0.41627966]
[1731063805974,0.2597,2923.5,2922.5,0.55]
[1731063807064,0.05133312,2923.6,2922.7,0.55]
[1731063807245,0.05133312,2923.6,2922.9,0.55]
[1731063807573,0.05133312,2923.6,2923.1,0.55]
[1731063812090,0.05133312,2923.6,2923.3,0.55]
[1731063812400,0.05133312,2923.6,2923.5,0.55]
[1731063812646,0.05133312,2923.6,2923.5,0.61839838]
[1731063812899,0.05133312,2923.6,2923.5,0.55]
[1731063813108,0.05133312,2923.6,2923.5,1.75622868]
[1731063813276,0.05133312,2923.6,2923.5,1.68783048]
[1731063817412,0.05133312,2923.6,2923.5,0.38333048]
[1731063817703,0.05133312,2923.6,2923.0,0.761]
[1731063818871,0.05133312,2923.6,2923.1,0.55]
[1731063819265,0.05133312,2923.6,2922.7,0.7781]
[1731063820415,0.05133312,2923.6,2922.8,3.35172632]
[1731063820618,0.05133312,2923.6,2922.8,3.28330483]
[1731063820923,0.05133312,2923.6,2923.0,0.55]
[1731063821923,0.05133312,2923.6,2922.8,0.55]
[1731063822082,0.05133312,2923.6,2922.8,3.83330483]
[1731063822287,0.05133312,2923.6,2923.0,0.55]
[1731063822509,0.05133312,2923.6,2923.1,3.28330483]
[1731063822708,0.05133312,2923.6,2923.3,1.3037]
[1731063822925,0.05133312,2923.6,2923.5,0.55]
[1731063826126,0.05133312,2923.6,2923.4,3.83330483]
[1731063831156,0.05133312,2923.6,2923.5,3.61839615]
[1731063831356,0.05133312,2923.6,2923.5,4.42589615]
[1731063831657,0.2597,2924.7,2923.6,0.55]
[1731063831954,0.2597,2924.7,2923.9,0.55]
[1731063832156,0.2597,2924.7,2924.1,0.55]
[1731063832922,0.2597,2924.7,2923.9,0.61839047]
[1731063833126,0.2597,2924.7,2923.9,0.55]
[1731063833319,0.2597,2924.7,2924.1,0.55]
[1731063836164,0.2597,2924.7,2924.1,4.70579822]
[1731063836322,0.2597,2925.4,2924.1,4.70579822]
[1731063836517,0.2597,2925.4,2924.1,4.63740483]
[1731063836857,0.2597,2925.4,2924.5,0.55]
[1731063837018,0.2597,2925.4,2924.7,1.3541]
[1731063837224,0.2597,2925.4,2924.9,0.55]
[1731063837651,0.2597,2925.4,2924.8,0.55]
[1731063838044,0.2597,2925.4,2924.6,0.55]
[1731063838249,0.2597,2925.4,2924.8,0.55]
[1731063838632,0.2597,2925.4,2924.4,4.08740483]
[1731063838633,0.2597,2925.4,2924.2,3.50207353]
[1731063838836,0.2597,2925.4,2924.3,0.55]
[1731063839152,0.2597,2925.4,2924.2,3.50207353]
[1731063840281,0.2597,2925.4,2924.3,0.55]
[1731063840759,0.2597,2925.4,2924.1,0.55]
[1731063841785,0.2597,2925.4,2924.3,0.55]
[1731063842083,0.2597,2925.4,2924.6,3.28330483]
[1731063842376,0.2597,2925.4,2924.5,0.55]
[1731063843002,0.2597,2925.4,2924.7,0.55]
[1731063843168,0.2597,2925.4,2924.9,0.55]
[1731063851455,0.2597,2925.4,2924.7,0.55]
[1731063851614,0.2597,2925.4,2924.9,0.55]
[1731063851815,0.2597,2925.4,2924.7,0.55]
[1731063852219,0.2597,2925.4,2924.5,0.55]
[1731063852544,0.2597,2925.4,2924.7,0.55]
[1731063852752,0.2597,2925.4,2924.9,0.55]
[1731063852952,0.2597,2925.4,2924.7,0.55]
[1731063856238,0.2597,2925.4,2924.9,0.55]
[1731063856881,0.2597,2925.4,2924.6,3.72112483]
[1731063856882,0.2597,2925.4,2924.7,0.55]
[1731063857044,0.2597,2925.4,2924.9,0.55]
[1731063857967,0.2597,2925.4,2924.7,0.55]
[1731063862085,0.2597,2925.7,2925.0,1.3357]
[1731063863141,0.2597,2925.7,2925.1,0.06836129]
[1731063863473,0.2597,2925.7,2925.0,1.3357]
[1731063863677,0.2597,2925.7,2925.2,0.55]
[1731063865077,0.2597,2925.7,2924.5,3.28330483]
[1731063865334,0.2597,2925.7,2924.6,3.06837316]
[1731063866365,0.2597,2925.7,2924.7,0.55]
[1731063866566,0.2597,2925.7,2924.9,0.55]
[1731063867566,0.2597,2925.7,2924.7,0.55]
[1731063867877,0.2597,2925.7,2924.9,0.55]
[1731063870003,0.2597,2925.7,2924.1,1.11088204]
[1731063870300,1.40802152,2925.6,2924.1,0.35648204]
[1731063870479,0.2597,2925.4,2924.1,0.35648204]
[1731063872385,0.2597,2925.4,2924.2,0.55]
[1731063872564,0.2597,2925.4,2924.2,0.97898125]
[1731063872966,0.2597,2925.3,2924.2,0.97898125]
[1731063875661,0.2597,2925.3,2924.2,0.55]
[1731063875862,0.2597,2925.3,2923.8,0.7544]
[1731063875863,1.66772152,2925.0,2923.6,3.28330483]
[1731063876062,0.2597,2924.9,2923.6,3.28330483]
[1731063876279,0.2597,2924.8,2923.6,3.28330483]
[1731063876620,0.2597,2924.7,2923.7,0.40980048]
[1731063877097,0.2597,2924.7,2923.8,0.55]
[1731063877461,0.2597,2924.7,2923.7,0.55]
[1731063877664,0.2597,2924.7,2923.3,3.28330483]
[1731063877876,0.2597,2924.7,2923.4,0.35629732]
[1731063878101,0.2597,2924.7,2923.5,0.36396022]
[1731063878395,0.2597,2924.7,2923.4,0.35629732]
[1731063878797,0.2597,2924.7,2923.7,0.55]
[1731063880265,0.2597,2924.7,2923.7,0.61839958]
[1731063881904,0.2597,2924.7,2923.7,0.55]
[1731063882212,0.2597,2924.7,2923.5,0.55]
[1731063882513,0.2597,2924.6,2923.5,0.06839582]
[1731063882699,0.2597,2924.6,2923.5,3.35170065]
[1731063883063,0.2597,2924.6,2923.5,3.28330483]
[1731063883808,0.2597,2924.6,2923.6,0.55]
[1731063886380,0.2597,2924.6,2923.5,0.55]
[1731063887212,0.2597,2924.6,2923.5,0.94061247]
[1731063887416,0.2597,2924.6,2923.5,0.55]
[1731063888223,0.2597,2924.6,2923.4,0.35612472]
[1731063888423,0.2597,2924.4,2923.0,3.0]
[1731063888586,0.2597,2924.4,2923.0,3.35610533]
[1731063889090,0.2597,2924.4,2923.1,0.0684079]
[1731063889421,0.2597,2924.4,2923.3,0.55]
[1731063890382,0.2597,2924.4,2923.1,0.55]
[1731063891387,0.2597,2924.4,2923.0,0.35610533]
[1731063892603,0.2597,2924.4,2923.1,0.55]
[1731063894335,0.2597,2924.4,2923.3,0.55]
[1731063894538,0.2597,2924.4,2923.1,0.55]
[1731063894702,0.2597,2924.4,2923.3,0.55]
[1731063895231,0.2597,2924.3,2923.1,0.55]
[1731063897723,0.2597,2924.3,2923.3,0.55]
[1731063900315,0.2597,2924.3,2923.3,0.61841]
[1731063900516,0.2597,2924.3,2923.3,0.55]
[1731063900850,0.2597,2924.3,2923.4,0.38333048]
[1731063902251,0.2597,2924.3,2923.5,3.90171213]
[1731063902427,0.2597,2924.3,2923.5,3.83330483]
[1731063903057,0.2597,2924.3,2923.8,3.28330483]
[1731063903261,1.78161966,2925.5,2923.6,0.87569766]
[1731063903262,0.2597,2925.5,2924.2,0.55]
[1731063903417,0.2597,2925.5,2924.4,0.55]
[1731063907126,0.2597,2925.5,2923.8,3.28330483]
[1731063907329,0.2597,2925.4,2923.8,4.09030483]
[1731063907532,0.2597,2925.4,2923.9,0.06839213]
[1731063907752,0.2597,2925.4,2923.8,4.09030483]
[1731063907959,0.2597,2925.4,2923.9,0.40903048]
[1731063908175,1.40802152,2925.4,2923.9,0.40903048]
[1731063908325,0.2597,2925.3,2923.9,0.40903048]
[1731063908529,1.66772152,2925.2,2923.9,0.40903048]
[1731063908752,0.2597,2925.1,2923.5,0.7765]
[1731063908969,1.40802152,2925.1,2923.5,0.7765]
[1731063909142,0.2597,2925.0,2923.5,0.7765]
[1731063909466,0.2597,2924.9,2923.5,0.7765]
[1731063910270,3.0,2924.7,2923.1,0.35608494]
[1731063910439,0.2597,2924.6,2923.1,0.35608494]
[1731063910640,0.2597,2924.5,2923.1,0.35608494]
[1731063911260,0.2597,2924.4,2923.1,0.35608494]
[1731063911968,0.2597,2924.4,2923.2,0.55]
[1731063912372,0.2597,2924.3,2923.2,0.55]
[1731063913975,0.2597,2924.8,2923.9,0.55]
[1731063914146,0.2597,2924.8,2924.1,0.55]
[1731063917247,0.2597,2924.7,2923.4,0.7918]
[1731063917478,0.2597,2924.6,2923.4,0.7918]
[1731063917673,1.40802152,2924.6,2923.4,0.7918]
[1731063917846,0.2597,2924.5,2923.4,0.7918]
[1731063918582,0.2597,2924.5,2923.5,0.55]
[1731063918777,0.2597,2924.3,2923.5,0.55]
[1731063920640,0.2597,2924.3,2923.1,3.0]
[1731063920641,0.2597,2924.3,2923.1,0.8155]
[1731063920867,0.2597,2924.2,2923.1,0.8155]
[1731063921664,0.2597,2924.2,2923.2,0.06841021]
[1731063921870,0.2597,2924.2,2923.3,0.55]
[1731063922266,0.2597,2924.2,2923.5,0.55]
[1731063922969,0.2597,2924.2,2923.5,0.9401715]
[1731063923472,0.2597,2924.2,2923.5,0.55]
[1731063923688,0.2597,2924.2,2923.3,0.55]
[1731063924175,0.2597,2924.2,2923.5,0.55]
[1731063924758,0.2597,2924.2,2923.4,0.7772]
[1731063924945,0.2597,2924.5,2923.9,0.55]
[1731063925145,0.2597,2924.8,2924.1,0.55]
[1731063925344,1.40802152,2925.2,2924.3,0.55]
[1731063925548,0.2597,2925.4,2924.7,3.83330483]
[1731063925766,0.2597,2925.6,2925.0,3.28330483]
[1731063925990,0.0512865,2925.8,2925.4,0.55]
[1731063926173,0.0512865,2925.8,2925.6,0.55]
[1731063927359,0.0512865,2925.8,2925.6,3.35165731]
[1731063927681,0.0512865,2925.8,2925.5,0.38333048]
[1731063928852,0.0512865,2925.8,2925.1,3.7979]
[1731063928853,0.0512865,2925.8,2925.1,0.7979]
[1731063929479,0.2597,2925.7,2924.7,0.7961]
[1731063929679,0.2597,2925.7,2924.8,0.06837023]
[1731063930153,0.2597,2925.7,2924.7,0.7961]
[1731063930892,0.2597,2925.7,2924.8,0.06837398]
[1731063931387,0.2597,2925.7,2924.4,0.7723]
[1731063931561,0.2597,2925.7,2924.4,1.17786048]
[1731063932688,0.2597,2925.7,2924.0,6.28330483]
[1731063932920,0.2597,2925.6,2924.0,7.05560483]
[1731063933193,0.2597,2925.6,2924.1,0.06838701]
[1731063933552,3.54300483,2925.5,2924.1,0.06838701]
[1731063933751,0.2597,2925.4,2924.1,0.06838701]
[1731063934400,0.2597,2925.4,2924.1,0.06838551]
[1731063935076,0.2597,2925.3,2923.9,0.35638402]
[1731063935260,0.2597,2925.3,2923.9,1.10059291]
[1731063935460,0.2597,2925.3,2923.9,0.35638402]
[1731063936582,0.2597,2925.3,2924.0,3.35169151]
[1731063936793,0.2597,2925.3,2923.9,0.35638402]
[1731063936995,0.2597,2925.3,2923.7,0.8024]
[1731063937173,0.2597,2925.3,2923.8,0.55]
[1731063937377,0.2597,2925.1,2923.8,0.55]
[1731063937712,0.2597,2925.1,2923.7,0.8024]
[1731063938304,0.2597,2925.1,2923.8,3.06838876]
[1731063938486,0.2597,2925.1,2923.9,0.55]
[1731063939173,0.2597,2925.1,2923.8,3.0]
[1731063939516,0.2597,2925.1,2923.9,0.70857048]
[1731063939876,0.2597,2925.1,2923.6,0.35634165]
[1731063940221,0.2597,2925.0,2923.5,3.28330483]
[1731063940389,0.2597,2925.0,2923.5,3.63963284]
[1731063941401,3.28330483,2924.9,2923.5,0.35632801]
[1731063941574,0.2597,2924.7,2923.5,0.35632801]
[1731063941779,0.2597,2924.7,2923.2,3.28330483]
[1731063943217,0.2597,2924.7,2923.8,3.28330483]
[1731063943402,0.2597,2924.7,2923.9,0.06838794]
[1731063943604,0.2597,2924.7,2923.9,0.55]
[1731063943787,0.2597,2924.7,2924.0,0.38333048]
[1731063943995,0.2597,2924.7,2924.1,3.35168638]
[1731063944219,0.2597,2925.7,2924.2,0.7706]
[1731063944420,0.2597,2925.7,2924.3,0.06837964]
[1731063944604,0.2597,2925.7,2924.2,0.7706]
[1731063944804,0.2597,2925.5,2924.3,0.4806082]
[1731063945097,0.2597,2925.5,2924.3,0.41222845]
[1731063945293,0.2597,2925.5,2924.2,0.7706]
[1731063946529,0.2597,2925.5,2924.1,0.06837972]
[1731063946729,0.2597,2925.5,2924.0,0.38333048]
[1731063948045,0.2597,2925.3,2923.6,0.803]
[1731063948341,0.2597,2925.3,2923.9,0.06838412]
[1731063949091,0.2597,2925.3,2923.4,3.28330483]
[1731063949092,0.2597,2925.1,2923.4,3.28330483]
[1731063949294,0.2597,2925.0,2923.4,3.28330483]
[1731063949516,0.2597,2925.0,2923.1,4.08495891]
[1731063949824,0.2597,2924.8,2923.2,0.48566589]
[1731063950240,0.2597,2924.8,2923.7,3.28330483]
[1731063950726,0.2597,2924.8,2923.6,0.7717]
[1731063951436,0.2597,2924.8,2923.3,0.8319]
[1731063951603,0.2597,2924.6,2923.1,0.35617181]
[1731063951935,0.2597,2924.5,2923.2,0.06840262]
[1731063952405,0.2597,2924.5,2923.2,0.06840718]
[1731063952592,0.2597,2924.5,2923.1,3.63947664]
[1731063952795,0.2597,2924.5,2923.2,0.06840719]
[1731063953124,0.2597,2924.5,2923.4,3.28330483]
[1731063953332,0.2597,2924.5,2923.5,0.32833048]
[1731063953718,0.2597,2924.5,2923.0,0.8319]
[1731063953929,0.2597,2924.5,2923.2,0.55]
[1731063954815,0.2597,2924.5,2922.9,3.35641034]
[1731063955137,0.2597,2924.5,2923.1,3.28330483]
[1731063955476,0.2597,2924.5,2923.2,0.06840618]
[1731063955645,0.32597,2924.4,2923.3,0.3351711]
[1731063955931,0.2597,2924.3,2923.3,0.3351711]
[1731063956104,0.2597,2924.3,2923.4,0.06840319]
[1731063956308,0.2597,2924.3,2923.3,0.3351711]
[1731063959248,0.2597,2924.3,2923.4,0.06840014]
[1731063959455,0.2597,2924.3,2923.3,0.3351711]
[1731063959950,0.2597,2924.3,2923.4,0.06840014]
[1731063960328,0.2597,2924.3,2923.3,1.0901711]
[1731063960656,0.2597,2924.3,2923.3,0.3351711]
[1731063961316,0.2597,2924.3,2923.0,0.55]
[1731063961853,0.2597,2924.3,2923.1,3.35170848]
[1731063962851,0.2597,2924.3,2923.2,0.55]
[1731063964064,0.2597,2924.3,2923.1,3.28330483]
[1731063964235,0.2597,2924.3,2923.2,0.55]
[1731063964555,0.2597,2924.3,2923.3,0.38333048]
[1731063965327,0.2597,2924.3,2923.4,3.83330483]
[1731063965527,0.2597,2924.3,2923.7,3.28330483]
[1731063965834,0.2597,2924.3,2923.4,0.55]
[1731063965835,0.2597,2924.3,2923.6,0.55]
[1731063966420,0.2597,2924.3,2923.5,0.55]
[1731063966618,0.2597,2924.3,2923.6,0.38333048]
[1731063967247,0.2597,2924.3,2923.3,0.38333048]
[1731063968054,0.2597,2924.3,2923.4,0.06840363]
[1731063968260,0.2597,2924.3,2923.3,0.38333048]
[1731063970550,0.2597,2924.3,2923.0,0.35644169]
[1731063971871,0.31101277,2924.2,2923.0,0.35644169]
[1731063973046,3.55,2924.1,2923.0,0.35644169]
[1731063973242,0.2597,2924.0,2922.3,0.8207]
[1731063973472,0.2597,2924.0,2922.5,0.35661642]
[1731063973672,3.55,2924.1,2922.6,0.06842077]
[1731063973673,0.64067,2923.9,2922.6,0.06842077]
[1731063973830,0.2597,2923.8,2922.6,0.06842077]
[1731063975027,3.2597,2923.8,2922.5,0.35661642]
[1731063975254,0.2597,2923.7,2922.5,0.35661642]
[1731063978064,0.2597,2923.7,2922.6,0.61842029]
[1731063978369,0.2597,2923.7,2922.7,0.50502415]
[1731063979085,0.2597,2923.7,2922.5,0.35661642]
[1731063979365,0.2597,2923.7,2922.6,0.06842139]
[1731063980133,0.2597,2923.7,2922.5,0.35661642]
[1731063980363,0.2597,2923.7,2922.6,0.06842138]
[1731063981465,0.2597,2923.7,2922.5,3.63992125]
[1731063981629,0.2597,2923.7,2922.6,0.36399213]
[1731063983579,0.2597,2923.7,2922.5,0.35661642]
[1731063984078,0.2597,2923.4,2921.8,0.8217]
[1731063984369,0.2597,2923.4,2922.1,0.35654946]
[1731063985269,0.2597,2923.4,2922.6,3.28330483]
[1731063985772,0.2597,2923.4,2922.3,0.774]
[1731063985773,0.2597,2923.4,2922.4,0.55]
[1731063985933,0.2597,2923.4,2922.5,0.46073048]
[1731063986572,0.2597,2923.4,2922.6,0.06842529]
[1731063986870,0.2597,2923.4,2922.7,3.28330483]
[1731063987070,0.2597,2923.4,2922.8,0.61840968]
[1731063987286,0.2597,2923.4,2922.8,0.55]
[1731063987432,0.2597,2923.4,2922.8,0.61841087]
[1731063987639,0.2597,2923.4,2922.8,0.55]
[1731063987868,0.2597,2924.1,2923.3,3.28330483]
[1731063988088,0.2597,2924.1,2923.4,0.06840284]
[1731063988589,0.2597,2924.1,2923.3,3.28330483]
[1731063989176,0.2597,2924.1,2923.0,4.61050483]
[1731063989889,0.2597,2924.1,2923.0,3.83330483]
[1731063990089,0.2597,2924.1,2923.1,0.42166353]
[1731063990254,0.2597,2924.1,2922.3,0.50090007]